fUST/lending_fUST_20250702
["ID","MTS","AMOUNT","RATE_DAILY","PERIOD"]
[369015163,1751434256238,-460.0,0.00017534,2]
[369015164,1751434256248,-460.0,0.00017534,2]
[369015165,1751434256257,-673.57,0.00017534,2]
[369015166,1751434256267,-460.0,0.00017534,2]
[369015167,1751434256277,-460.0,0.00017534,2]
[369015168,1751434256286,-990.58,0.00017534,2]
[369015169,1751434256296,-766.02,0.00017534,2]
[369015170,1751434256305,-973.37,0.00017534,2]
[369015171,1751434256315,-460.0,0.00017534,2]
[369015172,1751434256326,-292.04220623,0.00017534,2]
[369015173,1751434256336,-460.0,0.00017534,2]
[369015174,1751434256346,-460.0,0.00017534,2]
[369015175,1751434256356,-460.0,0.00017534,2]
[369015176,1751434256366,-460.0,0.00017534,2]
[369015177,1751434256375,-682.67,0.00017534,2]
[369015178,1751434256385,-460.0,0.00017534,2]
[369015179,1751434256395,-468.66033963,0.00017534,2]
[369015180,1751434256405,-1182.53,0.00017534,2]
[369015181,1751434256414,-460.0,0.00017534,2]
[369015182,1751434256424,-460.0,0.00017534,2]
[369015183,1751434256434,-1222.93,0.00017534,2]
[369015184,1751434256444,-460.0,0.00017534,2]
[369015185,1751434256454,-460.0,0.00017534,2]
[369015186,1751434256463,-465.60275538,0.00017534,2]
[369015187,1751434256473,-1671.51,0.00017534,2]
[369015188,1751434256483,-612.12,0.00017534,2]
[369015189,1751434256493,-460.0,0.00017534,2]
[369015190,1751434256503,-460.0,0.00017534,2]
[369015191,1751434256514,-460.0,0.00017534,2]
[369015192,1751434256524,-460.0,0.00017534,2]
[369015193,1751434256534,-460.0,0.00017534,2]
[369015194,1751434256545,-825.61,0.00017534,2]
[369015195,1751434256555,-460.0,0.00017534,2]
[369015196,1751434256565,-460.0,0.00017534,2]
[369015197,1751434256575,-460.0,0.00017534,2]
[369015198,1751434256585,-1437.09,0.00017534,2]
[369015199,1751434256595,-460.0,0.00017534,2]
[369015200,1751434256604,-462.85229283,0.00017534,2]
[369015201,1751434256614,-460.0,0.00017534,2]
[369015202,1751434256623,-460.0,0.00017534,2]
[369015203,1751434256634,-490.14951915,0.00017534,2]
[369015204,1751434256645,-460.0,0.00017534,2]
[369015205,1751434256654,-460.0,0.00017534,2]
[369015206,1751434256664,-460.0,0.00017534,2]
[369015207,1751434256674,-489.56,0.00017534,2]
[369015208,1751434256684,-577.54,0.00017534,2]
[369015209,1751434256693,-1014.2,0.00017534,2]
[369015210,1751434256703,-674.3,0.00017534,2]
[369015211,1751434256713,-460.0,0.00017534,2]
[369015212,1751434256722,-836.06,0.00017534,2]
[369015213,1751434256732,-460.0,0.00017534,2]
[369015214,1751434256742,-508.57,0.00017534,2]
[369015215,1751434256752,-356.29554358,0.00017534,2]
[369015216,1751434256762,-460.0,0.00017534,2]
[369015217,1751434256772,-460.0,0.00017534,2]
[369015218,1751434256782,-460.0,0.00017534,2]
[369015219,1751434256791,-460.0,0.00017534,2]
[369015220,1751434256801,-460.0,0.00017534,2]
[369015221,1751434256811,-460.0,0.00017534,2]
[369015222,1751434256821,-1318.2,0.00017534,2]
[369015223,1751434256830,-460.0,0.00017534,2]
[369015224,1751434256840,-460.0,0.00017534,2]
[369015225,1751434256850,-460.0,0.00017534,2]
[369015226,1751434256859,-1163.6,0.00017534,2]
[369015227,1751434256869,-515.61,0.00017534,2]
[369015228,1751434256878,-581.04,0.00017534,2]
[369015229,1751434256888,-519.85,0.00017534,2]
[369015230,1751434256898,-460.0,0.00017534,2]
[369015231,1751434256907,-460.0,0.00017534,2]
[369015232,1751434256917,-411.23639041,0.00017534,2]
[369015233,1751434256927,-460.0,0.00017534,2]
[369015234,1751434256936,-536.15,0.00017534,2]
[369015235,1751434256946,-460.0,0.00017534,2]
[369015236,1751434256956,-460.0,0.00017534,2]
[369015237,1751434256965,-460.0,0.00017534,2]
[369015238,1751434256975,-950.71,0.00017534,2]
[369015239,1751434256985,-981.68474319,0.00017568,2]
[369015240,1751434256999,-1500.0,0.00017568,2]
[369015241,1751434257008,-460.0,0.00017578,2]
[369015242,1751434257018,-424.41440532,0.00017578,2]
[369015243,1751434257028,-460.0,0.00017578,2]
[369015244,1751434257039,-460.0,0.00017588,2]
[369015245,1751434257049,-1029.73,0.00017588,2]
[369015246,1751434257059,-460.0,0.00017588,2]
[369015247,1751434257069,-474.13,0.00017589,2]
[369015248,1751434257079,-607.58,0.00017745,3]
[369015249,1751434257088,-303.78,0.00017745,3]
[369015250,1751434257098,-457.2,0.00017746,3]
[369015251,1751434257108,-914.38,0.00017753,3]
[369015252,1751434257118,-1319.3,0.00017753,3]
[369015253,1751434257128,-659.64,0.00017753,3]
[369015254,1751434257137,-329.82,0.00017753,3]
[369015255,1751434257148,-460.0,0.00017808,2]
[369015256,1751434257158,-460.0,0.00017808,2]
[369015257,1751434257167,-460.0,0.00017808,2]
[369015258,1751434257177,-460.0,0.00017808,2]
[369015259,1751434257187,-181.38549486,0.00017808,2]
[369015260,1751434257197,-460.0,0.00017808,2]
[369015261,1751434257207,-460.0,0.00017808,2]
[369015262,1751434257217,-460.0,0.00017808,2]
[369015263,1751434257227,-392.16078526,0.00017808,2]
[369015264,1751434257236,-460.0,0.00017808,2]
[369015265,1751434257247,-460.0,0.00017808,2]
[369015266,1751434257256,-460.0,0.00017808,2]
[369015267,1751434257266,-460.0,0.00017808,2]
[369015268,1751434257276,-460.0,0.00017808,2]
[369015269,1751434257286,-460.0,0.00017808,2]
[369015270,1751434257296,-460.0,0.00017808,2]
[369015271,1751434257306,-460.0,0.00017808,2]
[369015272,1751434257316,-460.0,0.00017808,2]
[369015273,1751434257326,-460.0,0.00017808,2]
[369015274,1751434257336,-460.0,0.00017808,2]
[369015275,1751434257346,-460.0,0.00017808,2]
[369015276,1751434257356,-673.57,0.00017808,2]
[369015277,1751434257365,-460.0,0.00017808,2]
[369015278,1751434257375,-460.0,0.00017808,2]
[369015279,1751434257385,-990.58,0.00017808,2]
[369015280,1751434257395,-766.02,0.00017808,2]
[369015281,1751434257405,-973.37,0.00017808,2]
[369015282,1751434257415,-460.0,0.00017808,2]
[369015283,1751434257425,-460.0,0.00017808,2]
[369015284,1751434257435,-460.0,0.00017808,2]
[369015285,1751434257444,-460.0,0.00017808,2]
[369015286,1751434257454,-460.0,0.00017808,2]
[369015287,1751434257464,-682.67,0.00017808,2]
[369015288,1751434257474,-1182.53,0.00017808,2]
[369015289,1751434257484,-460.0,0.00017808,2]
[369015290,1751434257494,-460.0,0.00017808,2]
[369015291,1751434257504,-1222.93,0.00017808,2]
[369015292,1751434257514,-460.0,0.00017808,2]
[369015293,1751434257524,-469.65259259,0.00017808,2]
[369015294,1751434257534,-1671.51,0.00017808,2]
[369015295,1751434257544,-612.12,0.00017808,2]
[369015296,1751434257555,-460.0,0.00017808,2]
[369015297,1751434257565,-460.0,0.00017808,2]
[369015298,1751434257576,-460.0,0.00017808,2]
[369015299,1751434257586,-460.0,0.00017808,2]
[369015300,1751434257596,-460.0,0.00017808,2]
[369015301,1751434257652,-825.61,0.00017808,2]
[369015302,1751434257663,-177.11346123,0.00017808,2]
[369015303,1751434257672,-460.0,0.00017808,2]
[369015304,1751434257682,-460.0,0.00017808,2]
[369015305,1751434257692,-1437.09,0.00017808,2]
[369015306,1751434257702,-460.0,0.00017808,2]
[369015307,1751434257712,-460.0,0.00017808,2]
[369015308,1751434257722,-460.0,0.00017808,2]
[369015309,1751434257731,-566.61,0.00017808,2]
[369015310,1751434257741,-460.0,0.00017808,2]
[369015311,1751434257751,-460.0,0.00017808,2]
[369015312,1751434257760,-489.56,0.00017808,2]
[369015313,1751434257769,-577.54,0.00017808,2]
[369015314,1751434257779,-1014.2,0.00017808,2]
[369015315,1751434257789,-674.3,0.00017808,2]
[369015316,1751434257798,-460.0,0.00017808,2]
[369015317,1751434257807,-836.06,0.00017808,2]
[369015318,1751434257816,-460.0,0.00017808,2]
[369015319,1751434257826,-508.57,0.00017808,2]
[369015320,1751434257835,-460.0,0.00017808,2]
[369015321,1751434257844,-460.0,0.00017808,2]
[369015322,1751434257854,-460.0,0.00017808,2]
[369015323,1751434257863,-460.0,0.00017808,2]
[369015324,1751434257873,-460.0,0.00017808,2]
[369015325,1751434257883,-460.0,0.00017808,2]
[369015326,1751434257894,-1318.2,0.00017808,2]
[369015327,1751434257903,-460.0,0.00017808,2]
[369015328,1751434257913,-460.0,0.00017808,2]
[369015329,1751434257923,-588.83843698,0.00017808,2]
[369015330,1751434257932,-1163.6,0.00017808,2]
[369015331,1751434257942,-515.61,0.00017808,2]
[369015332,1751434257951,-581.04,0.00017808,2]
[369015333,1751434257962,-519.85,0.00017808,2]
[369015334,1751434257972,-376.05637592,0.00017808,2]
[369015335,1751434257982,-356.53244053,0.00017808,2]
[369015336,1751434257995,-179.85246902,0.00017808,2]
[369015337,1751434258004,-536.15,0.00017808,2]
[369015338,1751434258014,-460.0,0.00017808,2]
[369015339,1751434258023,-460.0,0.00017808,2]
[369015340,1751434258033,-460.0,0.00017808,2]
[369015341,1751434258043,-460.0,0.00017852,2]
[369015342,1751434258054,-460.0,0.00017862,2]
[369015343,1751434258064,-1029.73,0.00017862,2]
[369015344,1751434258074,-460.0,0.00017862,2]
[369015345,1751434258084,-1680.0,0.00017897,2]
[369015346,1751434258093,-589.90287929,0.000179,2]
[369015347,1751434258102,-589.90287924,0.000179,2]
[369015348,1751434258112,-589.90287924,0.000179,2]
[369015349,1751434258121,-589.90287924,0.000179,2]
[369015350,1751434258131,-420.0,0.00017915,2]
[369015351,1751434258140,-420.0,0.00017915,2]
[369015352,1751434258150,-74354.08070579,0.00018,2]
[369015353,1751434258160,-9473.97790745,0.00018,2]
[369015354,1751434258170,-1307.13140143,0.00018,2]
[369015355,1751434258180,-29183.89239616,0.00018,2]
[369015356,1751434258189,-1680.0,0.00018004,2]
[369015357,1751434258199,-659.40219871,0.00018023,2]
[369015358,1751434258209,-460.0,0.00018082,2]
[369015359,1751434258219,-206.5427776,0.00018082,2]
[369015360,1751434258228,-460.0,0.00018082,2]
[369015361,1751434258238,-211.6603477,0.00018082,2]
[369015362,1751434258247,-460.0,0.00018082,2]
[369015363,1751434258257,-460.0,0.00018082,2]
[369015364,1751434258267,-460.0,0.00018082,2]
[369015365,1751434258276,-460.0,0.00018082,2]
[369015366,1751434258286,-460.0,0.00018082,2]
[369015367,1751434258295,-460.0,0.00018082,2]
[369015368,1751434258304,-460.0,0.00018082,2]
[369015369,1751434258314,-460.0,0.00018082,2]
[369015370,1751434258324,-460.0,0.00018082,2]
[369015371,1751434258334,-460.0,0.00018082,2]
[369015372,1751434258344,-460.0,0.00018082,2]
[369015373,1751434258353,-460.0,0.00018082,2]
[369015374,1751434258363,-460.0,0.00018082,2]
[369015375,1751434258374,-460.0,0.00018082,2]
[369015376,1751434258383,-460.0,0.00018082,2]
[369015377,1751434258392,-673.57,0.00018082,2]
[369015378,1751434258402,-460.0,0.00018082,2]
[369015379,1751434258411,-460.0,0.00018082,2]
[369015380,1751434258421,-990.58,0.00018082,2]
[369015381,1751434258431,-766.02,0.00018082,2]
[369015382,1751434258441,-973.37,0.00018082,2]
[369015383,1751434258451,-460.0,0.00018082,2]
[369015384,1751434258461,-460.0,0.00018082,2]
[369015385,1751434258477,-460.0,0.00018082,2]
[369015386,1751434258488,-460.0,0.00018082,2]
[369015387,1751434258498,-460.0,0.00018082,2]
[369015388,1751434258507,-682.67,0.00018082,2]
[369015389,1751434258517,-1182.53,0.00018082,2]
[369015390,1751434258526,-460.0,0.00018082,2]
[369015391,1751434258536,-460.0,0.00018082,2]
[369015392,1751434258545,-1222.93,0.00018082,2]
[369015393,1751434258555,-460.0,0.00018082,2]
[369015394,1751434258564,-1671.51,0.00018082,2]
[369015395,1751434258574,-612.12,0.00018082,2]
[369015396,1751434258583,-460.0,0.00018082,2]
[369015397,1751434258594,-460.0,0.00018082,2]
[369015398,1751434258604,-460.0,0.00018082,2]
[369015399,1751434258614,-460.0,0.00018082,2]
[369015400,1751434258625,-460.0,0.00018082,2]
[369015401,1751434258643,-825.61,0.00018082,2]
[369015402,1751434258652,-460.0,0.00018082,2]
[369015403,1751434258662,-460.0,0.00018082,2]
[369015404,1751434258673,-1437.09,0.00018082,2]
[369015405,1751434258683,-460.0,0.00018082,2]
[369015406,1751434258693,-460.0,0.00018082,2]
[369015407,1751434258704,-460.0,0.00018082,2]
[369015408,1751434258714,-460.0,0.00018082,2]
[369015409,1751434258726,-489.56,0.00018082,2]
[369015410,1751434258736,-577.54,0.00018082,2]
[369015411,1751434258747,-1014.2,0.00018082,2]
[369015412,1751434258758,-674.3,0.00018082,2]
[369015413,1751434258769,-460.0,0.00018082,2]
[369015414,1751434258779,-836.06,0.00018082,2]
[369015415,1751434258789,-460.0,0.00018082,2]
[369015416,1751434258799,-508.57,0.00018082,2]
[369015417,1751434258809,-460.0,0.00018082,2]
[369015418,1751434258819,-460.0,0.00018082,2]
[369015419,1751434258830,-460.0,0.00018082,2]
[369015420,1751434258842,-460.0,0.00018082,2]
[369015421,1751434258852,-460.0,0.00018082,2]
[369015422,1751434258862,-460.0,0.00018082,2]
[369015423,1751434258872,-1318.2,0.00018082,2]
[369015424,1751434258881,-460.0,0.00018082,2]
[369015425,1751434258891,-460.0,0.00018082,2]
[369015426,1751434258900,-1163.6,0.00018082,2]
[369015427,1751434258909,-515.61,0.00018082,2]
[369015428,1751434258919,-581.04,0.00018082,2]
[369015429,1751434258928,-519.85,0.00018082,2]
[369015430,1751434258938,-536.15,0.00018082,2]
[369015431,1751434258947,-460.0,0.00018082,2]
[369015432,1751434258957,-460.0,0.00018082,2]
[369015433,1751434258967,-460.0,0.00018082,2]
[369015434,1751434258976,-500.0,0.00018116,2]
[369015435,1751434258986,-460.0,0.00018126,2]
[369015436,1751434258999,-460.0,0.00018136,2]
[369015437,1751434259008,-1029.73,0.00018136,2]
[369015438,1751434259018,-460.0,0.00018136,2]
[369015439,1751434259027,-589.90287924,0.00018141,2]
[369015440,1751434259038,-460.0,0.00018356,2]
[369015441,1751434259047,-460.0,0.00018356,2]
[369015442,1751434259057,-460.0,0.00018356,2]
[369015443,1751434259066,-460.0,0.00018356,2]
[369015444,1751434259076,-460.0,0.00018356,2]
[369015445,1751434259085,-467.24816002,0.00018356,2]
[369015446,1751434259095,-460.0,0.00018356,2]
[369015447,1751434259104,-419.08885865,0.00018356,2]
[369015448,1751434259113,-460.0,0.00018356,2]
[369015449,1751434259124,-460.0,0.00018356,2]
[369015450,1751434259133,-460.0,0.00018356,2]
[369015451,1751434259144,-460.0,0.00018356,2]
[369015452,1751434259154,-460.0,0.00018356,2]
[369015453,1751434259164,-460.0,0.00018356,2]
[369015454,1751434259173,-673.57,0.00018356,2]
[369015455,1751434259183,-460.0,0.00018356,2]
[369015456,1751434259193,-460.0,0.00018356,2]
[369015457,1751434259203,-990.58,0.00018356,2]
[369015458,1751434259213,-766.02,0.00018356,2]
[369015459,1751434259222,-973.37,0.00018356,2]
[369015460,1751434259232,-460.0,0.00018356,2]
[369015461,1751434259241,-460.0,0.00018356,2]
[369015462,1751434259251,-460.0,0.00018356,2]
[369015463,1751434259260,-460.0,0.00018356,2]
[369015464,1751434259270,-460.0,0.00018356,2]
[369015465,1751434259280,-682.67,0.00018356,2]
[369015466,1751434259290,-1182.53,0.00018356,2]
[369015467,1751434259300,-460.0,0.00018356,2]
[369015468,1751434259309,-460.0,0.00018356,2]
[369015469,1751434259320,-1222.93,0.00018356,2]
[369015470,1751434259331,-460.0,0.00018356,2]
[369015471,1751434259341,-1671.51,0.00018356,2]
[369015472,1751434259352,-612.12,0.00018356,2]
[369015473,1751434259362,-460.0,0.00018356,2]
[369015474,1751434259373,-460.0,0.00018356,2]
[369015475,1751434259383,-460.0,0.00018356,2]
[369015476,1751434259392,-460.0,0.00018356,2]
[369015477,1751434259403,-825.61,0.00018356,2]
[369015478,1751434259412,-460.0,0.00018356,2]
[369015479,1751434259423,-460.0,0.00018356,2]
[369015480,1751434259432,-1437.09,0.00018356,2]
[369015481,1751434259442,-460.0,0.00018356,2]
[369015482,1751434259452,-460.0,0.00018356,2]
[369015483,1751434259461,-460.0,0.00018356,2]
[369015484,1751434259471,-460.0,0.00018356,2]
[369015485,1751434259481,-489.56,0.00018356,2]
[369015486,1751434259490,-577.54,0.00018356,2]
[369015487,1751434259500,-1014.2,0.00018356,2]
[369015488,1751434259510,-674.3,0.00018356,2]
[369015489,1751434259519,-206.4220441,0.00018356,2]
[369015490,1751434259529,-836.06,0.00018356,2]
[369015491,1751434259538,-460.0,0.00018356,2]
[369015492,1751434259548,-508.57,0.00018356,2]
[369015493,1751434259557,-460.0,0.00018356,2]
[369015494,1751434259567,-460.0,0.00018356,2]
[369015495,1751434259577,-430.86442775,0.00018356,2]
[369015496,1751434259587,-460.0,0.00018356,2]
[369015497,1751434259596,-460.0,0.00018356,2]
[369015498,1751434259606,-460.0,0.00018356,2]
[369015499,1751434259615,-1318.2,0.00018356,2]
[369015500,1751434259625,-460.0,0.00018356,2]
[369015501,1751434259635,-460.0,0.00018356,2]
[369015502,1751434259645,-1163.6,0.00018356,2]
[369015503,1751434259655,-515.61,0.00018356,2]
[369015504,1751434259664,-581.04,0.00018356,2]
[369015505,1751434259674,-519.85,0.00018356,2]
[369015506,1751434259684,-536.15,0.00018356,2]
[369015507,1751434259694,-460.0,0.00018356,2]
[369015508,1751434259704,-460.0,0.00018356,2]
[369015509,1751434259713,-460.0,0.00018356,2]
[369015510,1751434259723,-460.0,0.000184,2]
[369015511,1751434259732,-460.0,0.0001841,2]
[369015512,1751434259742,-1029.73,0.0001841,2]
[369015513,1751434259752,-460.0,0.0001841,2]
[369015514,1751434259761,-589.90287924,0.00018452,2]
[369015515,1751434259772,-12573.65100011,0.00018534,2]
[369015516,1751434259781,-847.65867985,0.00018534,2]
[369015517,1751434259791,-215.04179405,0.00018534,2]
[369015518,1751434259801,-837.27862799,0.00018534,2]
[369015519,1751434259811,-230.34465076,0.00018534,2]
[369015520,1751434260028,-160.0,0.00018534,2]
[369015521,1751434260039,-160.0,0.00018534,2]
[369015522,1751434260049,-160.0,0.00018534,2]
[369015523,1751434260059,-160.0,0.00018534,2]
[369015524,1751434260070,-160.0,0.00018534,2]
[369015525,1751434260080,-160.0,0.00018565,2]
[369015526,1751434260089,-659.40219871,0.00018584,2]
[369015527,1751434260099,-355.9014168,0.0001863,2]
[369015528,1751434260109,-460.0,0.0001863,2]
[369015529,1751434260119,-551.63096001,0.0001863,2]
[369015530,1751434260130,-460.0,0.0001863,2]
[369015531,1751434260139,-266.21140957,0.0001863,2]
[369015532,1751434260149,-460.0,0.0001863,2]
[369015533,1751434260160,-460.0,0.0001863,2]
[369015534,1751434260170,-460.0,0.0001863,2]
[369015535,1751434260180,-460.0,0.0001863,2]
[369015536,1751434260190,-460.0,0.0001863,2]
[369015537,1751434260200,-460.0,0.0001863,2]
[369015538,1751434260211,-460.0,0.0001863,2]
[369015539,1751434260221,-673.57,0.0001863,2]
[369015540,1751434260232,-460.0,0.0001863,2]
[369015541,1751434260242,-460.0,0.0001863,2]
[369015542,1751434260252,-990.58,0.0001863,2]
[369015543,1751434260263,-766.02,0.0001863,2]
[369015544,1751434260273,-973.37,0.0001863,2]
[369015545,1751434260284,-460.0,0.0001863,2]
[369015546,1751434260294,-460.0,0.0001863,2]
[369015547,1751434260304,-460.0,0.0001863,2]
[369015548,1751434260314,-460.0,0.0001863,2]
[369015549,1751434260324,-460.0,0.0001863,2]
[369015550,1751434260335,-682.67,0.0001863,2]
[369015551,1751434260344,-1182.53,0.0001863,2]
[369015552,1751434260354,-460.0,0.0001863,2]
[369015553,1751434260365,-460.0,0.0001863,2]
[369015554,1751434260375,-1222.93,0.0001863,2]
[369015555,1751434260385,-460.0,0.0001863,2]
[369015556,1751434260395,-1671.51,0.0001863,2]
[369015557,1751434260406,-612.12,0.0001863,2]
[369015558,1751434260416,-460.0,0.0001863,2]
[369015559,1751434260426,-460.0,0.0001863,2]
[369015560,1751434260437,-460.0,0.0001863,2]
[369015561,1751434260447,-460.0,0.0001863,2]
[369015562,1751434260457,-825.61,0.0001863,2]
[369015563,1751434260467,-460.0,0.0001863,2]
[369015564,1751434260477,-460.0,0.0001863,2]
[369015565,1751434260488,-1437.09,0.0001863,2]
[369015566,1751434260498,-460.0,0.0001863,2]
[369015567,1751434260508,-460.0,0.0001863,2]
[369015568,1751434260519,-460.0,0.0001863,2]
[369015569,1751434260530,-460.0,0.0001863,2]
[369015570,1751434260540,-489.56,0.0001863,2]
[369015571,1751434260551,-577.54,0.0001863,2]
[369015572,1751434260562,-1014.2,0.0001863,2]
[369015573,1751434260572,-674.3,0.0001863,2]
[369015574,1751434260582,-836.06,0.0001863,2]
[369015575,1751434260594,-460.0,0.0001863,2]
[369015576,1751434260605,-508.57,0.0001863,2]
[369015577,1751434260615,-460.0,0.0001863,2]
[369015578,1751434260626,-460.0,0.0001863,2]
[369015579,1751434260638,-591.0395663,0.0001863,2]
[369015580,1751434260648,-460.0,0.0001863,2]
[369015581,1751434260659,-460.0,0.0001863,2]
[369015582,1751434260669,-1318.2,0.0001863,2]
[369015583,1751434260679,-460.0,0.0001863,2]
[369015584,1751434260690,-460.0,0.0001863,2]
[369015585,1751434260701,-1163.6,0.0001863,2]
[369015586,1751434260710,-515.61,0.0001863,2]
[369015587,1751434260720,-581.04,0.0001863,2]
[369015588,1751434260730,-519.85,0.0001863,2]
[369015589,1751434260740,-536.15,0.0001863,2]
[369015590,1751434260751,-460.0,0.0001863,2]
[369015591,1751434260763,-460.0,0.0001863,2]
[369015592,1751434260776,-460.0,0.0001863,2]
[369015593,1751434260786,-460.0,0.00018674,2]
[369015594,1751434260796,-460.0,0.00018684,2]
[369015595,1751434260808,-1029.73,0.00018684,2]
[369015596,1751434260819,-460.0,0.00018684,2]
[369015597,1751434260830,-589.90287924,0.00018762,2]
[369015598,1751434260840,-2131.93864915,0.000189,2]
[369015599,1751434260850,-460.0,0.00018904,2]
[369015600,1751434260859,-460.0,0.00018904,2]
[369015601,1751434260871,-529.01770838,0.00018904,2]
[369015602,1751434260882,-418.71,0.00018904,2]
[369015603,1751434260892,-460.0,0.00018904,2]
[369015604,1751434260902,-460.0,0.00018904,2]
[369015605,1751434260912,-157.2946194,0.00018904,2]
[369015606,1751434260922,-460.0,0.00018904,2]
[369015607,1751434260932,-460.0,0.00018904,2]
[369015608,1751434260942,-673.57,0.00018904,2]
[369015609,1751434260952,-460.0,0.00018904,2]
[369015610,1751434260961,-460.0,0.00018904,2]
[369015611,1751434260971,-990.58,0.00018904,2]
[369015612,1751434260982,-766.02,0.00018904,2]
[369015613,1751434260996,-973.37,0.00018904,2]
[369015614,1751434261006,-460.0,0.00018904,2]
[369015615,1751434261016,-460.0,0.00018904,2]
[369015616,1751434261026,-460.0,0.00018904,2]
[369015617,1751434261037,-460.0,0.00018904,2]
[369015618,1751434261047,-474.10285278,0.00018904,2]
[369015619,1751434261058,-682.67,0.00018904,2]
[369015620,1751434261071,-1182.53,0.00018904,2]
[369015621,1751434261080,-460.0,0.00018904,2]
[369015622,1751434261090,-460.0,0.00018904,2]
[369015623,1751434261100,-1222.93,0.00018904,2]
[369015624,1751434261111,-460.0,0.00018904,2]
[369015625,1751434261121,-1671.51,0.00018904,2]
[369015626,1751434261131,-612.12,0.00018904,2]
[369015627,1751434261142,-460.0,0.00018904,2]
[369015628,1751434261153,-460.0,0.00018904,2]
[369015629,1751434261163,-460.0,0.00018904,2]
[369015630,1751434261172,-460.0,0.00018904,2]
[369015631,1751434261182,-825.61,0.00018904,2]
[369015632,1751434261192,-460.0,0.00018904,2]
[369015633,1751434261202,-460.0,0.00018904,2]
[369015634,1751434261212,-1437.09,0.00018904,2]
[369015635,1751434261222,-460.0,0.00018904,2]
[369015636,1751434261232,-460.0,0.00018904,2]
[369015637,1751434261243,-460.0,0.00018904,2]
[369015638,1751434261254,-489.56,0.00018904,2]
[369015639,1751434261266,-577.54,0.00018904,2]
[369015640,1751434261276,-1014.2,0.00018904,2]
[369015641,1751434261286,-674.3,0.00018904,2]
[369015642,1751434261295,-836.06,0.00018904,2]
[369015643,1751434261305,-460.0,0.00018904,2]
[369015644,1751434261315,-508.57,0.00018904,2]
[369015645,1751434261325,-460.0,0.00018904,2]
[369015646,1751434261335,-401.13805728,0.00018904,2]
[369015647,1751434261345,-460.0,0.00018904,2]
[369015648,1751434261355,-460.0,0.00018904,2]
[369015649,1751434261365,-1318.2,0.00018904,2]
[369015650,1751434261375,-460.0,0.00018904,2]
[369015651,1751434261385,-460.0,0.00018904,2]
[369015652,1751434261395,-1163.6,0.00018904,2]
[369015653,1751434261406,-515.61,0.00018904,2]
[369015654,1751434261415,-581.04,0.00018904,2]
[369015655,1751434261425,-519.85,0.00018904,2]
[369015656,1751434261435,-256.62005013,0.00018904,2]
[369015657,1751434261446,-460.0,0.00018904,2]
[369015658,1751434261456,-536.15,0.00018904,2]
[369015659,1751434261466,-460.0,0.00018904,2]
[369015660,1751434261476,-460.0,0.00018948,2]
[369015661,1751434261486,-460.0,0.00018958,2]
[369015662,1751434261496,-1029.73,0.00018958,2]